[Event "Belt and Road Women 2024"]
[Site "Yuecheng Shaoxing"]
[Date "2024.07.25"]
[Round "2.6"]
[White "Kairbekova, Amina"]
[Black "Lu, Miaoyi"]
[Result "1/2-1/2"]
[ECO "C56"]
[WhiteElo "2244"]
[BlackElo "2449"]
[Annotator "RC"]
[PlyCount "61"]
[EventDate "2024.08.01"]
[EventType "swiss"]
[EventCountry "CHN"]
[SourceTitle "playchess.com"]
[Source "ChessBase"]
[SourceQuality "1"]
[TimeControl "5400+30"]

1. e4 {[%emt 0:00:15]} e5 {[%emt 0:00:01]} 2. Nf3 {[%emt 0:00:06]} Nc6 {[%emt 0:00:02]} 3. d4 {[%emt 0:00:07]} exd4 {[%emt 0:00:03]} 4. Bc4 {[%emt 0:00:04]} Nf6 {[%emt 0:02:05]} 5. e5 {[%emt 0:00:11]} Ne4 {[%emt 0:00:44]} 6. Qe2 {[%emt 0:00:10]} Nc5 {[%emt 0:00:02]} 7. c3 {[%emt 0:00:08]} Ne6 {[%emt 0:00:59]} 8. cxd4 {[%emt 0:00:11]} Bb4+ {[%emt 0:00:09]} 9. Nc3 {[%emt 0:07:06]} d5 {[%emt 0:00:11]} 10. exd6 {[%emt 0:04:31]} O-O {[%emt 0:00:03]} 11. Be3 {[%emt 0:01:19]} Re8 {[%emt 0:05:52]} 12. dxc7 {[%emt 0:05:13]} Qxc7 {[%emt 0:00:56]} 13. O-O {[%emt 0:03:25]} Nexd4 {[%emt 0:04:04]} 14. Nxd4 {[%emt 0:00:10]} Nxd4 {[%emt 0:00:03]} 15. Qd3 {[%emt 0:00:09]} Bxc3 {[%emt 0:19:23]} 16. Qxc3 {[%emt 0:00:18]} Nf5 {[%emt 0:01:24]} 17. Rad1 {[%emt 0:24:33]} Nd6 {[%emt 0:15:04]} 18. Bxf7+ {[%emt 0:00:00]} Qxf7 {[%emt 0:00:02]} 19. Rxd6 {[%emt 0:00:00]} Qxa2 {[%emt 0:00:26]} 20. h4 {[%emt 0:01:02]} Qf7 {[%emt 0:03:49]} 21. Rd4 {[%emt 0:09:01]} Bf5 {[%emt 0:12:38]} 22. Rf4 {[%emt 0:03:47]} Re4 {[%emt 0:06:01]} 23. Rc1 {[%emt 0:04:09]} Qd5 {[%emt 0:14:23]} 24. Qc5 {[%emt 0:04:35]} Qxc5 {[%emt 0:02:15]} 25. Rxc5 {[%emt 0:00:06]} Rxf4 {[%emt 0:00:10]} 26. Bxf4 {[%emt 0:00:04]} Be4 {[%emt 0:00:48]} 27. Rc7 {[%emt 0:00:34]} Rf8 {[%emt 0:00:38]} 28. Be5 {[%emt 0:03:09]} Rf7 {[%emt 0:00:03]} 29. Rc8+ {[%emt 0:00:47]} Rf8 {[%emt 0:00:02]} 30. Rc7 {[%emt 0:00:35]} Rf7 {[%emt 0:00:02]} 31. Rc8+ {[%emt 0:00:07]} 1/2-1/2

[Event "Belt and Road Women 2024"]
[Site "Yuecheng Shaoxing"]
[Date "2024.07.25"]
[Round "2.7"]
[White "Bai, Xue"]
[Black "Stefanova, Antoaneta"]
[Result "1/2-1/2"]
[ECO "C56"]
[WhiteElo "2114"]
[BlackElo "2417"]
[Annotator "RC"]
[PlyCount "112"]
[EventDate "2024.08.01"]
[EventType "swiss"]
[EventCountry "CHN"]
[SourceTitle "playchess.com"]
[Source "ChessBase"]
[SourceQuality "1"]
[TimeControl "5400+30"]

1. e4 {[%emt 0:00:12]} e5 {[%emt 0:00:41]} 2. Nf3 {[%emt 0:00:11]} Nc6 {[%emt 0:00:04]} 3. d4 {[%emt 0:00:28]} exd4 {[%emt 0:00:09]} 4. Bc4 {[%emt 0:00:08]} Nf6 {[%emt 0:10:31]} 5. Nxd4 {[%emt 0:00:38]} Nxe4 {[%emt 0:30:16]} 6. Bxf7+ {[%emt 0:09:17]} Kxf7 {[%emt 0:00:05]} 7. Qh5+ {[%emt 0:00:04]} g6 {[%emt 0:00:31]} 8. Qd5+ {[%emt 0:00:16]} Kg7 {[%emt 0:03:18]} 9. Nxc6 {[%emt 0:05:46]} Qe8 {[%emt 0:14:03]} 10. Qe5+ {[%emt 0:04:39]} Qxe5 {[%emt 0:01:17]} 11. Nxe5 {[%emt 0:00:06]} Bb4+ {[%emt 0:04:35]} 12. c3 {[%emt 0:03:55]} Bc5 {[%emt 0:01:41]} 13. O-O {[%emt 0:06:34]} Rf8 {[%emt 0:06:36]} 14. Nd3 {[%emt 0:05:22]} Bb6 {[%emt 0:01:02]} 15. Nd2 {[%emt 0:02:54]} Nd6 {[%emt 0:15:20]} 16. b4 {[%emt 0:05:09]} c6 {[%emt 0:01:05]} 17. Bb2 {[%emt 0:01:04]} Nf5 {[%emt 0:01:43]} 18. Nf3 {[%emt 0:02:50]} Bd8 {[%emt 0:01:12]} 19. Rad1 {[%emt 0:04:52]} Kg8 {[%emt 0:01:23]} 20. c4 {[%emt 0:01:48]} a5 {[%emt 0:00:03]} 21. b5 {[%emt 0:00:48]} d6 {[%emt 0:01:51]} 22. Rfe1 {[%emt 0:02:35]} a4 {[%emt 0:01:05]} 23. h3 {[%emt 0:03:41]} a3 {[%emt 0:00:19]} 24. Bc1 {[%emt 0:01:27]} Ra4 {[%emt 0:00:22]} 25. g4 {[%emt 0:08:00]} Ng7 {[%emt 0:00:13]} 26. Nd2 {[%emt 0:02:11]} cxb5 {[%emt 0:02:42]} 27. cxb5 {[%emt 0:00:06]} h5 {[%emt 0:00:37]} 28. Re4 {[%emt 0:01:11]} Ra8 {[%emt 0:00:22]} 29. Nb3 {[%emt 0:03:19]} hxg4 {[%emt 0:00:05]} 30. hxg4 {[%emt 0:00:05]} d5 {[%emt 0:00:25]} 31. Rf4 {[%emt 0:00:54]} Re8 {[%emt 0:00:43]} 32. Nb4 {[%emt 0:03:50]} g5 {[%emt 0:01:12]} 33. Rfd4 {[%emt 0:00:14]} Bf6 {[%emt 0:00:13]} 34. R4d3 {[%emt 0:03:09]} Bxg4 {[%emt 0:00:22]} 35. Nxd5 {[%emt 0:01:55]} Be5 {[%emt 0:00:55]} 36. f3 {[%emt 0:00:20]} Bf5 {[%emt 0:00:03]} 37. Re3 {[%emt 0:01:29]} Kf7 {[%emt 0:00:57]} 38. Nc5 {[%emt 0:03:23]} Bb2 {[%emt 0:00:47]} 39. Rxe8 {[%emt 0:00:49]} Nxe8 {[%emt 0:00:19]} 40. Bxg5 {[%emt 0:01:39]} Ra5 {[%emt 0:00:13]} 41. Ne4 {[%emt 0:04:50]} Rxb5 {[%emt 0:00:25]} 42. Ndc3 {[%emt 0:01:04]} Rb6 {[%emt 0:00:32]} 43. Be3 {[%emt 0:02:08]} Rc6 {[%emt 0:00:27]} 44. Nb5 {[%emt 0:00:04]} Bxe4 {[%emt 0:01:03]} 45. fxe4 {[%emt 0:00:05]} Nf6 {[%emt 0:00:30]} 46. e5 {[%emt 0:01:30]} Bxe5 {[%emt 0:00:17]} 47. Rd3 {[%emt 0:01:47]} Ng4 {[%emt 0:00:26]} 48. Rxa3 {[%emt 0:01:13]} Rc2 {[%emt 0:00:11]} 49. Bd4 {[%emt 0:00:23]} Bh2+ {[%emt 0:00:26]} 50. Kf1 {[%emt 0:00:08]} Bf4 {[%emt 0:00:28]} 51. Bg1 {[%emt 0:02:05]} Kg6 {[%emt 0:00:50]} 52. Nd4 {[%emt 0:00:15]} Rd2 {[%emt 0:00:42]} 53. Nf3 {[%emt 0:00:21]} Rb2 {[%emt 0:00:42]} 54. Nh4+ {[%emt 0:01:48]} Kh5 {[%emt 0:00:31]} 55. Nf3 {[%emt 0:00:02]} b5 {[%emt 0:00:32]} 56. Rb3 {[%emt 0:00:19]} Rxb3 {[%emt 0:00:21]} 1/2-1/2

[Event "Belt and Road Women 2024"]
[Site "Yuecheng Shaoxing"]
[Date "2024.07.25"]
[Round "2.8"]
[White "Beydullayeva, Govhar"]
[Black "Wang, Qinxuanyi"]
[Result "1/2-1/2"]
[ECO "A11"]
[WhiteElo "2417"]
[BlackElo "2149"]
[Annotator "RC"]
[PlyCount "60"]
[EventDate "2024.08.01"]
[EventType "swiss"]
[EventCountry "CHN"]
[SourceTitle "playchess.com"]
[Source "ChessBase"]
[SourceQuality "1"]
[TimeControl "5400+30"]

1. Nf3 {[%emt 0:00:04]} d5 {[%emt 0:00:10]} 2. g3 {[%emt 0:00:03]} Bg4 {[%emt 0:00:05]} 3. Bg2 {[%emt 0:00:21]} c6 {[%emt 0:00:07]} 4. c4 {[%emt 0:00:35]} e6 {[%emt 0:00:07]} 5. O-O {[%emt 0:00:24]} Nd7 {[%emt 0:01:08]} 6. cxd5 {[%emt 0:00:12]} cxd5 {[%emt 0:00:40]} 7. d3 {[%emt 0:08:18]} Ngf6 {[%emt 0:06:34]} 8. Bf4 {[%emt 0:01:16]} Be7 {[%emt 0:01:13]} 9. h3 {[%emt 0:06:48]} Bh5 {[%emt 0:03:10]} 10. Nc3 {[%emt 0:02:21]} O-O {[%emt 0:02:14]} 11. g4 {[%emt 0:02:34]} Bg6 {[%emt 0:01:38]} 12. Rc1 {[%emt 0:14:21]} a6 {[%emt 0:13:44]} 13. Bg3 {[%emt 0:10:12]} h6 {[%emt 0:05:53]} 14. Qd2 {[%emt 0:04:18]} Rc8 {[%emt 0:11:11]} 15. Rc2 {[%emt 0:05:02]} Nb6 {[%emt 0:08:01]} 16. Ne5 {[%emt 0:09:52]} Bh7 {[%emt 0:01:39]} 17. Rfc1 {[%emt 0:02:07]} Nfd7 {[%emt 0:08:52]} 18. Nf3 {[%emt 0:02:41]} Bc5 {[%emt 0:00:22]} 19. e4 {[%emt 0:03:41]} Qe7 {[%emt 0:06:59]} 20. exd5 {[%emt 0:03:08]} exd5 {[%emt 0:00:08]} 21. a3 {[%emt 0:01:38]} Rce8 {[%emt 0:09:49]} 22. Bh4 {[%emt 0:08:35]} g5 {[%emt 0:03:15]} 23. Bg3 {[%emt 0:00:05]} Bd6 {[%emt 0:00:49]} 24. Ne2 {[%emt 0:01:00]} Ne5 {[%emt 0:02:05]} 25. Nxe5 {[%emt 0:05:07]} Bxe5 {[%emt 0:00:05]} 26. Bxe5 {[%emt 0:04:29]} Qxe5 {[%emt 0:00:02]} 27. Qb4 {[%emt 0:01:24]} Re6 {[%emt 0:02:09]} 28. Qd4 {[%emt 0:02:30]} Rfe8 {[%emt 0:00:51]} 29. Bf1 {[%emt 0:00:48]} Qxd4 {[%emt 0:02:29]} 30. Nxd4 {[%emt 0:00:02]} Re1 {[%emt 0:01:39]} 1/2-1/2

[Event "Belt and Road Women 2024"]
[Site "Yuecheng Shaoxing"]
[Date "2024.07.25"]
[Round "2.9"]
[White "Guo, Qi"]
[Black "Yang, Yijing"]
[Result "1/2-1/2"]
[ECO "A11"]
[WhiteElo "2362"]
[BlackElo "2022"]
[Annotator "RC"]
[PlyCount "42"]
[EventDate "2024.08.01"]
[EventType "swiss"]
[EventCountry "CHN"]
[SourceTitle "playchess.com"]
[Source "ChessBase"]
[SourceQuality "1"]
[TimeControl "5400+30"]

1. Nf3 {[%emt 0:00:04]} d5 {[%emt 0:00:19]} 2. g3 {[%emt 0:00:07]} c6 {[%emt 0:00:12]} 3. Bg2 {[%emt 0:00:06]} Bg4 {[%emt 0:00:20]} 4. O-O {[%emt 0:00:10]} Nf6 {[%emt 0:00:14]} 5. c4 {[%emt 0:00:16]} e6 {[%emt 0:00:37]} 6. cxd5 {[%emt 0:00:23]} exd5 {[%emt 0:00:18]} 7. d3 {[%emt 0:01:03]} Be7 {[%emt 0:03:44]} 8. Nc3 {[%emt 0:01:57]} Nbd7 {[%emt 0:01:50]} 9. h3 {[%emt 0:03:31]} Bxf3 {[%emt 0:04:10]} 10. Bxf3 {[%emt 0:00:11]} O-O {[%emt 0:00:25]} 11. e4 {[%emt 0:05:50]} dxe4 {[%emt 0:11:30]} 12. dxe4 {[%emt 0:00:05]} Nc5 {[%emt 0:03:37]} 13. Be3 {[%emt 0:02:37]} Re8 {[%emt 0:03:12]} 14. Qc2 {[%emt 0:04:30]} Qd3 {[%emt 0:15:08]} 15. Qxd3 {[%emt 0:00:10]} Nxd3 {[%emt 0:00:04]} 16. Be2 {[%emt 0:02:20]} Nc5 {[%emt 0:03:39]} 17. e5 {[%emt 0:02:52]} Nfd7 {[%emt 0:00:40]} 18. f4 {[%emt 0:00:47]} a5 {[%emt 0:00:09]} 19. Rad1 {[%emt 0:02:21]} Rad8 {[%emt 0:03:28]} 20. Kg2 {[%emt 0:02:59]} g6 {[%emt 0:01:58]} 21. Rd2 {[%emt 0:07:27]} Nf8 {[%emt 0:07:20]} 1/2-1/2

[Event "Belt and Road Women 2024"]
[Site "Yuecheng Shaoxing"]
[Date "2024.07.25"]
[Round "2.10"]
[White "Wang, Yu A."]
[Black "Xiao, Yiyi"]
[Result "0-1"]
[ECO "B73"]
[WhiteElo "2234"]
[BlackElo "2338"]
[Annotator "RC"]
[PlyCount "98"]
[EventDate "2024.08.01"]
[EventType "swiss"]
[EventCountry "CHN"]
[SourceTitle "playchess.com"]
[Source "ChessBase"]
[SourceQuality "1"]
[TimeControl "5400+30"]

1. e4 {[%emt 0:00:01]} c5 {[%emt 0:00:13]} 2. Nf3 {[%emt 0:00:02]} d6 {[%emt 0:01:26]} 3. d4 {[%emt 0:00:18]} cxd4 {[%emt 0:00:07]} 4. Nxd4 {[%emt 0:00:20]} Nf6 {[%emt 0:00:10]} 5. Nc3 {[%emt 0:00:02]} Nc6 {[%emt 0:01:19]} 6. Be2 {[%emt 0:01:21]} g6 {[%emt 0:01:35]} 7. O-O {[%emt 0:01:17]} Bg7 {[%emt 0:00:18]} 8. Be3 {[%emt 0:00:42]} O-O {[%emt 0:00:11]} 9. Qd2 {[%emt 0:00:53]} Bd7 {[%emt 0:00:25]} 10. Nxc6 {[%emt 0:03:46]} Bxc6 {[%emt 0:01:00]} 11. f3 {[%emt 0:06:13]} Qc7 {[%emt 0:01:59]} 12. Nd5 {[%emt 0:09:17]} Bxd5 {[%emt 0:05:59]} 13. exd5 {[%emt 0:00:02]} Nd7 {[%emt 0:01:48]} 14. c4 {[%emt 0:03:57]} a5 {[%emt 0:03:46]} 15. Rac1 {[%emt 0:06:59]} a4 {[%emt 0:01:43]} 16. Rfe1 {[%emt 0:05:17]} Qa5 {[%emt 0:06:47]} 17. Qc2 {[%emt 0:12:10]} Rfc8 {[%emt 0:06:21]} 18. Bf1 {[%emt 0:04:53]} Qb4 {[%emt 0:17:47]} 19. b3 {[%emt 0:12:51]} Bf6 {[%emt 0:07:28]} 20. Bd2 {[%emt 0:04:59]} Qc5+ {[%emt 0:10:48]} 21. Be3 {[%emt 0:00:06]} Qa3 {[%emt 0:02:15]} 22. Rb1 {[%emt 0:01:47]} axb3 {[%emt 0:03:44]} 23. axb3 {[%emt 0:00:39]} b5 {[%emt 0:00:36]} 24. Bc1 {[%emt 0:12:01]} Qc5+ {[%emt 0:00:22]} 25. Be3 {[%emt 0:00:02]} Qa3 {[%emt 0:01:21]} 26. Bc1 {[%emt 0:00:01]} Qa5 {[%emt 0:02:34]} 27. Bd2 {[%emt 0:02:54]} b4 {[%emt 0:00:13]} 28. Qd1 {[%emt 0:04:24]} Nc5 {[%emt 0:00:36]} 29. f4 {[%emt 0:01:54]} Qb6 {[%emt 0:01:15]} 30. Kh1 {[%emt 0:01:43]} Ra2 {[%emt 0:00:24]} 31. Be3 {[%emt 0:00:48]} Rca8 {[%emt 0:01:13]} 32. Bd4 {[%emt 0:00:26]} Qc7 {[%emt 0:08:40]} 33. Bxf6 {[%emt 0:00:59]} exf6 {[%emt 0:00:02]} 34. Qd4 {[%emt 0:01:32]} f5 {[%emt 0:00:17]} 35. Re2 {[%emt 0:02:22]} Ne4 {[%emt 0:03:47]} 36. Rbe1 {[%emt 0:00:04]} Qc5 {[%emt 0:01:35]} 37. Qxc5 {[%emt 0:00:48]} Nxc5 {[%emt 0:01:07]} 38. Rxa2 {[%emt 0:01:02]} Rxa2 {[%emt 0:00:03]} 39. Re8+ {[%emt 0:00:29]} Kg7 {[%emt 0:00:01]} 40. Rb8 {[%emt 0:00:01]} Nxb3 {[%emt 0:00:59]} 41. Rxb4 {[%emt 0:00:55]} Ra1 {[%emt 0:01:01]} 42. g3 {[%emt 0:00:41]} Rxf1+ {[%emt 0:01:03]} 43. Kg2 {[%emt 0:00:01]} Rb1 {[%emt 0:00:11]} 44. Rb6 {[%emt 0:00:20]} Nd2 {[%emt 0:01:11]} 45. Rxd6 {[%emt 0:00:02]} Nxc4 {[%emt 0:00:08]} 46. Rd8 {[%emt 0:00:22]} Rb2+ {[%emt 0:03:17]} 47. Kf3 {[%emt 0:00:02]} Rd2 {[%emt 0:00:15]} 48. h3 {[%emt 0:00:48]} Nb6 {[%emt 0:00:40]} 49. d6 {[%emt 0:00:15]} Kf6 {[%emt 0:00:29]} 0-1

[Event "Belt and Road Women 2024"]
[Site "Yuecheng Shaoxing"]
[Date "2024.07.25"]
[Round "2.11"]
[White "Yan, Tianqi"]
[Black "Li, Xueyi"]
[Result "1-0"]
[ECO "B12"]
[WhiteElo "2306"]
[BlackElo "2209"]
[Annotator "RC"]
[PlyCount "101"]
[EventDate "2024.08.01"]
[EventType "swiss"]
[EventCountry "CHN"]
[SourceTitle "playchess.com"]
[Source "ChessBase"]
[SourceQuality "1"]
[TimeControl "5400+30"]

1. e4 {[%emt 0:00:03]} c6 {[%emt 0:00:01]} 2. d4 {[%emt 0:00:11]} d5 {[%emt 0:00:03]} 3. e5 {[%emt 0:00:13]} Bf5 {[%emt 0:00:07]} 4. h4 {[%emt 0:00:13]} a6 {[%emt 0:00:21]} 5. Nc3 {[%emt 0:01:40]} h5 {[%emt 0:01:03]} 6. Na4 {[%emt 0:05:27]} e6 {[%emt 0:04:49]} 7. a3 {[%emt 0:12:06]} Nd7 {[%emt 0:04:43]} 8. b4 {[%emt 0:06:47]} a5 {[%emt 0:09:54]} 9. b5 {[%emt 0:16:52]} Qc7 {[%emt 0:06:05]} 10. Be3 {[%emt 0:05:19]} Ne7 {[%emt 0:05:22]} 11. Nf3 {[%emt 0:04:04]} Bg4 {[%emt 0:02:24]} 12. c4 {[%emt 0:06:14]} cxb5 {[%emt 0:12:06]} 13. cxb5 {[%emt 0:01:01]} Nf5 {[%emt 0:00:23]} 14. Bg5 {[%emt 0:23:42]} Bxf3 {[%emt 0:10:01]} 15. gxf3 {[%emt 0:00:10]} Nb6 {[%emt 0:00:24]} 16. Rc1 {[%emt 0:06:44]} Nc4 {[%emt 0:00:10]} 17. Bxc4 {[%emt 0:00:54]} dxc4 {[%emt 0:00:06]} 18. Rc3 {[%emt 0:00:06]} Be7 {[%emt 0:02:28]} 19. Nb2 {[%emt 0:01:06]} Rd8 {[%emt 0:04:38]} 20. Rxc4 {[%emt 0:01:13]} Qd7 {[%emt 0:00:10]} 21. Bxe7 {[%emt 0:00:51]} Qxe7 {[%emt 0:00:37]} 22. Qa4 {[%emt 0:01:07]} O-O {[%emt 0:02:31]} 23. Ke2 {[%emt 0:01:01]} Qd7 {[%emt 0:02:28]} 24. Rd1 {[%emt 0:00:20]} b6 {[%emt 0:00:18]} 25. d5 {[%emt 0:02:51]} exd5 {[%emt 0:01:23]} 26. Rc6 {[%emt 0:00:13]} Qe7 {[%emt 0:01:25]} 27. Nd3 {[%emt 0:00:41]} d4 {[%emt 0:12:07]} 28. Rxb6 {[%emt 0:00:18]} Rd5 {[%emt 0:00:35]} 29. Rc6 {[%emt 0:02:28]} Nxh4 {[%emt 0:03:23]} 30. f4 {[%emt 0:00:42]} Nf5 {[%emt 0:02:39]} 31. Qb3 {[%emt 0:00:38]} Rdd8 {[%emt 0:00:55]} 32. b6 {[%emt 0:00:15]} Qh4 {[%emt 0:04:00]} 33. Rg1 {[%emt 0:00:47]} Ne7 {[%emt 0:00:33]} 34. Rc5 {[%emt 0:00:27]} Qh2 {[%emt 0:00:08]} 35. Rgc1 {[%emt 0:00:39]} Qg2 {[%emt 0:01:47]} 36. b7 {[%emt 0:00:23]} Rb8 {[%emt 0:01:11]} 37. Rb5 {[%emt 0:00:38]} h4 {[%emt 0:00:15]} 38. Rc7 {[%emt 0:00:34]} h3 {[%emt 0:01:20]} 39. e6 {[%emt 0:00:28]} f5 {[%emt 0:02:51]} 40. Rxe7 {[%emt 0:00:09]} h2 {[%emt 0:00:04]} 41. Rc7 {[%emt 0:00:30]} h1=Q {[%emt 0:02:31]} 42. e7+ {[%emt 0:00:01]} Kh7 {[%emt 0:00:55]} 43. exf8=Q {[%emt 0:00:21]} Rxf8 {[%emt 0:01:47]} 44. b8=Q {[%emt 0:00:02]} Qe4+ {[%emt 0:00:37]} 45. Kd2 {[%emt 0:00:03]} Rxb8 {[%emt 0:00:45]} 46. Rxb8 {[%emt 0:00:03]} Qd5 {[%emt 0:00:25]} 47. Qxd5 {[%emt 0:01:47]} Qxd5 {[%emt 0:00:04]} 48. Rbb7 {[%emt 0:00:03]} Qa2+ {[%emt 0:00:05]} 49. Ke1 {[%emt 0:00:58]} Qxa3 {[%emt 0:00:25]} 50. Rxg7+ {[%emt 0:00:08]} Kh6 {[%emt 0:00:15]} 51. Rh7+ {[%emt 0:00:07]} 1-0

[Event "Belt and Road Women 2024"]
[Site "Yuecheng Shaoxing"]
[Date "2024.07.25"]
[Round "2.12"]
[White "Shuvalova, Polina"]
[Black "Zhang, Xiao"]
[Result "1-0"]
[ECO "B12"]
[WhiteElo "2467"]
[BlackElo "2193"]
[Annotator "TA"]
[PlyCount "80"]
[EventDate "2024.08.01"]
[EventType "swiss"]
[EventCountry "CHN"]
[SourceTitle "playchess.com"]
[Source "ChessBase"]
[SourceQuality "1"]
[TimeControl "5400+30"]

{[%evp 9,80,16,5,8,12,20,15,14,10,22,7,7,16,0,0,0,0,-18,-23,-43,0,0,10,0,0,-13,0,-64,-22,-40,-33,-104,-87,-96,-79,-141,-118,-227,-129,-153,-149,-139,-129,-143,-149,-207,-92,-155,-120,-115,-5,-87,-95,-122,-68,-181,-164,-254,-252,-570,-574,-546,-320,-330,-343,-339,-262,-289,-289,-282,-282,-281,-281]} 1. e4 {[%emt 0:00:03]} c6 {[%emt 0:00:09]} 2. d4 {[%emt 0:00:07]} d5 {[%emt 0:00:06]} 3. e5 {[%emt 0:00:07]} c5 {[%emt 0:00:09]} 4. Nf3 {[%emt 0:00:09]} cxd4 {[%emt 0:00:14]} 5. Nxd4 {[%emt 0:00:06]} Nc6 {[%emt 0:00:30]} 6. Nxc6 {[%emt 0:00:13]} bxc6 {[%emt 0:00:04]} 7. Bd3 {[%emt 0:00:09]} e6 {[%emt 0:00:13]} 8. O-O {[%emt 0:00:06] The position is equal.} Ne7 {[%emt 0:00:04]} 9. Nd2 {[%emt 0:00:19]} Ng6 {[%emt 0:03:58]} 10. Nf3 {[%emt 0:03:03]} a5 {[%emt 0:01:27]} 11. Re1 {[%emt 0:00:18]} Ba6 {[%emt 0:01:40]} 12. Bxg6 {[%emt 0:00:13]} hxg6 {[%emt 0:01:38]} 13. c3 {[%emt 0:00:24]} Be7 {[%emt 0:02:50]} 14. Be3 {[%emt 0:02:31]} O-O {[%emt 0:04:12]} 15. Qa4 {[%emt 0:01:24][%cal Oa1d1]} Bb5 {[%emt 0:06:56]} 16. Qc2 {[%emt 0:03:15]} c5 {[%emt 0:01:27]} 17. Rad1 {[%emt 0:00:57]} Bc6 {[%emt 0:06:31]} 18. Qe2 {[%emt 0:02:05]} ({White should try} 18. Qd2 $11) 18... Rb8 {[%emt 0:02:10]} 19. h4 {[%emt 0:06:07]} Qb6 {[%emt 0:26:50]} (19... Bxh4 20. Bxc5 Be7 21. Bxe7 Qxe7 22. Rd4) 20. Bg5 {[%emt 0:15:52]} (20. b3 $15) 20... Bxg5 $17 {[%emt 0:01:59]} 21. Nxg5 {[%emt 0:00:07]} Qxb2 {[%emt 0:00:52]} 22. Qd3 {[%emt 0:16:18]} (22. Qe3 $142) 22... Bb5 {[%emt 0:04:28]} (22... Qxa2 23. h5 c4 (23... gxh5 24. Qh7#) 24. Qh3 gxh5 (24... Qc2 $2 25. h6 $18) 25. Qxh5 $11) 23. Qh3 {[%emt 0:12:16]} (23. Qe3 $17 {keeps fighting.}) 23... Qc2 {[%emt 0:01:15]} (23... Qxa2 24. h5 gxh5 25. Qxh5 $11) (23... Be2 $1 $19 {[%cal Re2d1]} 24. Rb1 Qd2 (24... Qxb1 25. Rxb1 Rxb1+ 26. Kh2 $19) (24... Qxa2 25. Ra1 $17)) 24. Rc1 {[%emt 0:00:46]} Qf5 {[%emt 0:01:35] ...Qxh3 would now be deadly.} (24... Qxa2 25. h5 gxh5 26. Ra1) 25. Qe3 {[%emt 0:06:04]} Rfc8 {[%emt 0:09:56]} 26. f3 {[%emt 0:08:07] [#]} Qd3 {[%emt 0:03:46] Dodges Red1. And now ...Qxe3+ would win.} 27. Qf2 {[%emt 0:05:18]} (27. Qf4 $17 Rc7 28. Red1) 27... Ba4 {[%emt 0:06:19]} (27... Rb7 $19 {and Black stays clearly on top. White must now prevent ...Qc4.} 28. Nh3 Qc4) 28. Kh2 {[%emt 0:02:50]} (28. Re3 $142 Qf5 29. Ree1) 28... Rb7 {[%emt 0:02:55]} 29. c4 {[%emt 0:08:18]} Rbc7 {[%emt 0:03:49]} (29... d4 $17 {...Rcb8 is the strong threat.} 30. Ne4 Rb4) 30. Re3 {[%emt 0:02:13] [#]} (30. cxd5 $11 {keeps the balance.} Qxd5 31. Qg3) 30... Qd4 $1 $36 {[%emt 0:02:02][%mdl 2048] Black has strong initiative.} 31. f4 {[%emt 0:03:12]} Rb7 {[%emt 0:00:50]} (31... dxc4 $17 32. Qg3 Bc6) 32. Rcc3 {[%emt 0:00:51]} (32. cxd5 $15 Rb2 (32... exd5 33. Qf3 $15) (32... Qxd5 33. Rec3 $11) 33. Qf3 Qxd5 (33... exd5 34. h5 $11) 34. Rec3) 32... dxc4 $19 {[%emt 0:02:13]} 33. Ne4 {[%emt 0:00:59]} (33. Kg3 $142) 33... Rcb8 {[%emt 0:00:17] Hoping for ...Bc6.} 34. h5 $2 {[%emt 0:00:56]} (34. Re1 Qxf2 35. Nxf2) 34... Bc6 {[%emt 0:00:47]} 35. Qe2 {[%emt 0:01:30]} Bxe4 {[%emt 0:01:35]} 36. Rxc4 {[%emt 0:00:08] [#] Black has a decisive advantage.} Rb2 $1 {[%emt 0:01:25]} 37. Rxd4 {[%emt 0:00:07]} Rxe2 {[%emt 0:00:02]} 38. Rxe2 {[%emt 0:00:08]} cxd4 {[%emt 0:00:04]} 39. Rxe4 {[%emt 0:00:02]} gxh5 {[%emt 0:00:37] aiming for ...Rb4.} 40. Rxd4 {[%emt 0:00:04]} Rb4 {[%emt 0:02:36][%mdl 32768] Weighted Error Value: White=0.43/Black=0.31.  Mistake:       	White=10    	Black=4      Inaccurate:     	---       	Black=3      OK:         	White=8     	Black=16     Best:        	White=1     	Black=1      Strong:       	---       	Black=1     . Loss on time!?} 1-0

[Event "Belt and Road Women 2024"]
[Site "Yuecheng Shaoxing"]
[Date "2024.07.25"]
[Round "2.13"]
[White "Mammadzada, Gunay"]
[Black "Ha, Yihan"]
[Result "1-0"]
[ECO "E11"]
[WhiteElo "2444"]
[BlackElo "2166"]
[Annotator "RC"]
[PlyCount "83"]
[EventDate "2024.08.01"]
[EventType "swiss"]
[EventCountry "CHN"]
[SourceTitle "playchess.com"]
[Source "ChessBase"]
[SourceQuality "1"]
[TimeControl "5400+30"]

1. d4 {[%emt 0:00:10]} Nf6 {[%emt 0:00:10]} 2. c4 {[%emt 0:00:05]} e6 {[%emt 0:00:06]} 3. g3 {[%emt 0:01:10]} d5 {[%emt 0:00:23]} 4. Bg2 {[%emt 0:00:05]} Bb4+ {[%emt 0:00:41]} 5. Bd2 {[%emt 0:02:26]} Be7 {[%emt 0:00:09]} 6. Nf3 {[%emt 0:00:14]} O-O {[%emt 0:00:51]} 7. O-O {[%emt 0:01:38]} c6 {[%emt 0:00:39]} 8. Qc2 {[%emt 0:00:05]} Nbd7 {[%emt 0:01:05]} 9. Rc1 {[%emt 0:00:35]} b6 {[%emt 0:05:00]} 10. a4 {[%emt 0:06:18]} a5 {[%emt 0:10:41]} 11. cxd5 {[%emt 0:04:57]} cxd5 {[%emt 0:00:21]} 12. Na3 {[%emt 0:03:31]} Ba6 {[%emt 0:01:11]} 13. Nb5 {[%emt 0:08:32]} Bxb5 {[%emt 0:02:26]} 14. axb5 {[%emt 0:00:05]} Bd6 {[%emt 0:04:46]} 15. e3 {[%emt 0:08:47]} Rc8 {[%emt 0:04:01]} 16. Qd1 {[%emt 0:02:11]} Qe7 {[%emt 0:05:43]} 17. Bf1 {[%emt 0:04:10]} Ne4 {[%emt 0:03:54]} 18. Be1 {[%emt 0:01:30]} h6 {[%emt 0:09:29]} 19. Rc6 {[%emt 0:01:45]} Rc7 {[%emt 0:08:33]} 20. Rxc7 {[%emt 0:10:09]} Bxc7 {[%emt 0:00:03]} 21. Rc1 {[%emt 0:01:33]} Bd6 {[%emt 0:01:44]} 22. Rc6 {[%emt 0:00:22]} Qd8 {[%emt 0:05:29]} 23. Qa4 {[%emt 0:04:07]} Nb8 {[%emt 0:01:08]} 24. Rc1 {[%emt 0:00:09]} Qe7 {[%emt 0:07:48]} 25. Bd3 {[%emt 0:01:46]} f5 {[%emt 0:00:44]} 26. Nh4 {[%emt 0:09:03]} Kh7 {[%emt 0:06:05]} 27. Qc2 {[%emt 0:01:44]} g5 {[%emt 0:00:48]} 28. Ng2 {[%emt 0:02:39]} Kg7 {[%emt 0:01:31]} 29. f3 {[%emt 0:00:21]} Nf6 {[%emt 0:00:21]} 30. Bf2 {[%emt 0:03:22]} g4 {[%emt 0:01:30]} 31. Nh4 {[%emt 0:01:40]} Qd7 {[%emt 0:03:18]} 32. e4 {[%emt 0:00:43]} fxe4 {[%emt 0:01:43]} 33. fxe4 {[%emt 0:00:01]} dxe4 {[%emt 0:01:31]} 34. Be2 {[%emt 0:01:04]} Qf7 {[%emt 0:01:45]} 35. Rf1 {[%emt 0:00:42]} Qh5 {[%emt 0:02:28]} 36. Be3 {[%emt 0:01:17]} Nbd7 {[%emt 0:00:50]} 37. Qc6 {[%emt 0:00:43]} Bb8 {[%emt 0:07:28]} 38. Qxe6 {[%emt 0:00:25]} Re8 {[%emt 0:00:43]} 39. Qc6 {[%emt 0:00:40]} Rf8 {[%emt 0:02:18]} 40. Bc4 {[%emt 0:00:51]} Kh7 {[%emt 0:00:25]} 41. Be6 {[%emt 0:00:32]} Qe8 {[%emt 0:00:22]} 42. Bxd7 {[%emt 0:01:30]} 1-0